bitfinex-derivatives/quotes_SOLF0:USTF0_20241010
["timestamp","ask_amount","ask_price","bid_price","bid_amount"]
[1728582738264,7.24146871,137.68,137.64,3.636]
[1728582738465,5.96,137.68,137.63,0.12502]
[1728582738661,3.6361,137.64,137.63,0.12502]
[1728582738855,9.5961,137.64,137.63,0.12502]
[1728582741153,23.41,137.64,137.6,2.17817]
[1728582741363,85.80178445,137.64,137.57,0.12502]
[1728582741562,17.45,137.58,137.57,0.12502]
[1728582741861,27.4477,137.58,137.57,0.12502]
[1728582742059,27.4477,137.58,137.51,0.12502]
[1728582742060,25.09236758,137.58,137.51,0.12502]
[1728582742264,25.09236758,137.58,137.51,2.30533]
[1728582742265,17.45,137.55,137.51,2.30533]
[1728582742765,3.6385,137.55,137.51,2.30533]
[1728582742960,17.45,137.56,137.51,2.30533]
[1728582743160,10.06114621,137.58,137.51,2.30533]
[1728582743366,3.6392,137.52,137.51,0.12502]
[1728582743667,17.45,137.56,137.51,0.12502]
[1728582743865,3.6392,137.53,137.51,0.12502]
[1728582744170,6.74,137.55,137.51,0.12502]
[1728582744565,17.45,137.54,137.51,0.12502]
[1728582745168,3.6392,137.52,137.51,0.12502]
[1728582747666,3.6392,137.52,137.45,1.46562]
[1728582747667,17.45,137.49,137.45,0.12502]
[1728582747867,6.74,137.48,137.45,2.30533]
[1728582748165,3.6408,137.46,137.45,2.30533]
[1728582748557,21.0908,137.46,137.45,2.30533]
[1728582749573,24.77861386,137.46,137.45,2.30533]
[1728582749763,21.0908,137.46,137.45,2.30533]
[1728582750069,3.6415,137.44,137.4,1.3456]
[1728582750366,6.74,137.43,137.39,2.30731]
[1728582750565,3.6424,137.4,137.39,0.12502]
[1728582750969,21.09155684,137.41,137.38,2.18229]
[1728582751173,17.45,137.39,137.36,2.18229]
[1728582751366,17.45,137.37,137.33,0.12502]
[1728582751665,21.094,137.34,137.33,0.12502]
[1728582751973,17.45,137.39,137.33,0.12502]
[1728582751974,25.25,137.36,137.33,0.12502]
[1728582752176,7.8,137.35,137.33,0.12502]
[1728582752362,17.45,137.36,137.33,0.12502]
[1728582752564,7.8,137.35,137.33,0.12502]
[1728582752864,7.8,137.35,137.33,2.30882]
[1728582753065,7.8,137.37,137.33,2.30882]
[1728582753267,11.4433,137.37,137.33,2.30882]
[1728582753461,7.8,137.37,137.33,2.30882]
[1728582753664,28.02,137.35,137.27,0.12502]
[1728582753863,3.6456,137.28,137.27,0.12502]
[1728582754172,11.4456,137.28,137.27,0.12502]
[1728582755270,11.4456,137.28,137.21,0.12502]
[1728582755271,35.82,137.28,137.21,0.12502]
[1728582755471,28.02,137.25,137.21,0.12502]
[1728582755668,7.8,137.24,137.21,0.12502]
[1728582755869,28.02,137.26,137.21,0.12502]
[1728582755870,3.6472,137.22,137.21,0.12502]
[1728582756374,3.6472,137.22,137.19,2.18435]
[1728582756375,3.6485,137.18,137.16,0.12518]
[1728582756673,0.12502,137.21,137.14,2.18611]
[1728582756867,28.02,137.2,137.09,2.31113]
[1728582757063,7.8,137.19,137.09,2.31113]
[1728582757370,7.8,137.18,137.09,2.31113]
[1728582757579,35.82,137.18,137.09,2.31113]
[1728582757874,7.8,137.18,137.09,2.31113]
[1728582758074,28.02,137.19,137.1,3.6502]
[1728582758075,3.649,137.16,137.1,3.6502]
[1728582758283,28.02,137.16,137.09,0.12502]
[1728582758571,3.6496,137.14,137.09,2.31113]
[1728582758766,28.02,137.16,137.09,2.31113]
[1728582758767,7.8,137.13,137.09,2.31113]
[1728582758966,7.8,137.17,137.09,30.33113]
[1728582759170,7.8,137.17,137.09,2.31113]
[1728582759566,3.6497,137.13,137.09,2.31113]
[1728582759765,7.8,137.12,137.09,2.31113]
[1728582760373,28.02,137.19,137.09,2.31113]
[1728582760579,7.8,137.18,137.09,2.31113]
[1728582760778,3.6486,137.17,137.12,3.6497]
[1728582760981,7.8,137.18,137.09,2.31113]
[1728582761274,11.4483,137.18,137.13,3.6494]
[1728582761474,7.8,137.18,137.13,3.6494]
[1728582761872,7.8,137.18,137.09,2.31113]
[1728582762077,7.8,137.17,137.09,2.31113]
[1728582762475,11.4486,137.17,137.12,3.6496]
[1728582762774,7.8,137.17,137.09,2.31113]
[1728582762971,11.4487,137.17,137.12,3.6497]
[1728582763166,7.8,137.17,137.09,2.31113]
[1728582763768,7.8,137.17,137.1,28.02]
[1728582764074,111.29632228,137.2,137.12,28.02]
[1728582764278,7.8,137.2,137.12,35.82]
[1728582764471,0.12502,137.21,137.14,28.02]
[1728582764672,0.12502,137.21,137.15,2.6847]
[1728582764971,0.12502,137.27,137.17,28.02]
[1728582765271,0.12502,137.27,137.19,28.02]
[1728582765870,0.12502,137.27,137.19,30.20611]
[1728582766070,0.12502,137.27,137.19,2.18611]
[1728582766265,3.6465,137.25,137.21,3.6472]
[1728582766470,0.12502,137.27,137.19,2.18611]
[1728582766675,0.12502,137.27,137.19,2.0391]
[1728582766875,3.6465,137.25,137.21,3.6474]
[1728582767069,0.12502,137.27,137.19,2.0391]
[1728582767468,3.6469,137.24,137.2,3.6475]
[1728582767774,0.12502,137.27,137.2,2.0391]
[1728582767980,3.6466,137.25,137.21,3.6472]
[1728582768178,0.12502,137.27,137.21,2.18499]
[1728582768375,0.12502,137.27,137.24,3.6465]
[1728582768671,0.12502,137.27,137.24,2.18499]
[1728582769478,3.6464,137.25,137.24,2.18499]
[1728582769681,0.12502,137.27,137.16,1.321]
[1728582769878,0.12502,137.27,137.16,3.50599]
[1728582770069,0.12502,137.27,137.17,28.02]
[1728582770568,0.12502,137.27,137.17,30.20499]
[1728582770769,0.12502,137.27,137.19,28.02]
[1728582770976,0.12502,137.27,137.19,38.40499]
[1728582771570,3.77102,137.27,137.23,3.6467]
[1728582771773,8.2,137.29,137.19,38.40499]
[1728582771977,8.2,137.3,137.21,0.12502]
[1728582772186,3.6456,137.29,137.25,3.6464]
[1728582772374,8.2,137.3,137.21,0.12502]
[1728582772684,8.2,137.3,137.23,3.6468]
[1728582772685,3.646,137.27,137.23,3.6468]
[1728582772980,28.02,137.31,137.21,2.31001]
[1728582773171,8.2,137.3,137.21,2.31001]
[1728582773372,3.646,137.27,137.24,3.6467]
[1728582773572,8.2,137.3,137.21,2.31001]
[1728582773981,28.02,137.28,137.21,2.31001]
[1728582774282,28.02,137.26,137.21,2.31001]
[1728582774477,36.22,137.26,137.21,2.31001]
[1728582775578,3.6466,137.25,137.21,5.95741]
[1728582775783,36.22,137.26,137.21,2.31001]
[1728582775978,8.2,137.26,137.21,2.31001]
[1728582776278,3.6466,137.25,137.21,2.31001]
[1728582776475,8.2,137.26,137.21,2.31001]
[1728582776781,8.2,137.26,137.23,3.6467]
[1728582777475,11.8463,137.26,137.23,5.83169]
[1728582777676,28.02,137.28,137.23,2.18499]
[1728582777877,3.6461,137.27,137.23,2.18499]
[1728582778178,28.02,137.28,137.23,2.18499]
[1728582778476,3.6463,137.26,137.23,2.18499]
[1728582778880,3.6463,137.26,137.23,5.83179]
[1728582779876,3.646,137.27,137.24,3.6466]
[1728582780277,28.02,137.28,137.24,2.18499]
[1728582780576,1.46221,137.22,137.21,0.12502]
[1728582780779,1.46221,137.22,137.16,1.321]
[1728582780780,28.02,137.22,137.16,1.321]
[1728582780977,8.2,137.23,137.16,3.50695]
[1728582781178,6.54069,137.23,137.16,3.50695]
[1728582781385,10.17375736,137.23,137.16,1.321]
[1728582781576,3.6475,137.21,137.18,3.6481]
[1728582781883,10.17375736,137.23,137.18,2.18587]
[1728582781884,28.02,137.22,137.18,2.18587]
[1728582782084,3.6476,137.21,137.18,5.83397]
[1728582782279,28.02,137.25,137.18,2.18587]
[1728582782585,8.2,137.26,137.18,2.18587]
[1728582782784,0.12502,137.27,137.19,28.02]
[1728582782981,0.12502,137.27,137.19,36.22]
[1728582783288,0.12502,137.27,137.26,3.6461]
[1728582783481,0.12502,137.27,137.19,10.38587]
[1728582784986,8.2,137.26,137.19,2.18587]
[1728582785181,3.6468,137.24,137.21,3.6473]
[1728582785685,3.6468,137.24,137.21,5.83317]
[1728582785881,3.6465,137.25,137.22,3.6471]
[1728582786089,8.2,137.26,137.16,37.541]
[1728582786090,8.2,137.26,137.18,28.02]
[1728582786486,0.12502,137.27,137.21,28.02]
[1728582786786,0.12502,137.27,137.23,28.02]
[1728582787083,0.12502,137.33,137.25,28.02]
[1728582787281,0.12502,137.33,137.25,36.22]
[1728582787481,0.12502,137.33,137.26,4.0542]
[1728582787689,0.12502,137.33,137.32,3.6445]
[1728582788291,0.12502,137.33,137.32,5.83037]
[1728582788486,0.12502,137.33,137.32,2.18587]
[1728582789300,0.12502,137.33,137.32,5.83037]
[1728582789595,36.22,137.4,137.32,2.18587]
[1728582789784,36.22,137.4,137.33,3.6441]
[1728582790192,3.6434,137.37,137.33,5.82997]
[1728582790497,36.22,137.4,137.33,2.18587]
[1728582790995,8.2,137.4,137.33,2.18587]
[1728582791199,28.02,137.42,137.33,2.18587]
[1728582791488,8.2,137.41,137.33,2.18587]
[1728582791691,8.2,137.41,137.36,3.6433]
[1728582791996,28.02,137.42,137.36,2.18587]
[1728582792197,31.7358376,137.38,137.29,3.6453]
[1728582792396,28.02,137.35,137.27,0.12502]
[1728582792599,36.22,137.35,137.27,0.12502]
[1728582792795,3.6443,137.33,137.28,3.6455]
[1728582792996,36.22,137.35,137.28,3.6455]
[1728582793192,36.22,137.35,137.27,2.30914]
[1728582793701,3.645,137.31,137.28,3.6456]
[1728582793905,36.22,137.35,137.27,2.30914]
[1728582794197,3.6449,137.31,137.28,3.6454]
[1728582794400,28.02,137.33,137.27,2.30914]
[1728582795011,36.22,137.35,137.27,2.30914]
[1728582795302,3.6445,137.33,137.29,3.6452]
[1728582795607,28.02,137.33,137.27,0.12502]
[1728582795806,28.02,137.33,137.27,2.30914]
[1728582797204,3.6448,137.32,137.27,5.95494]
[1728582797399,28.02,137.33,137.27,2.30914]
[1728582798303,36.22,137.35,137.27,2.30914]
[1728582798808,28.02,137.28,137.21,0.12502]
[1728582799106,8.18,137.27,137.21,2.31017]
[1728582799600,8.18,137.27,137.25,3.6462]
[1728582799802,8.18,137.27,137.25,2.18515]
[1728582800204,28.02,137.3,137.21,0.12502]
[1728582800402,8.18,137.29,137.21,2.31017]
[1728582800803,8.18,137.32,137.21,2.31017]
[1728582801105,8.18,137.32,137.24,3.6466]
[1728582801505,28.02,137.3,137.24,2.18515]
[1728582801709,3.6464,137.25,137.24,2.18515]
[1728582802010,8.18,137.27,137.22,2.18515]
[1728582802204,3.6469,137.24,137.21,5.95757]
[1728582802408,8.18,137.27,137.21,2.31017]
[1728582804011,3.6463,137.26,137.23,3.6468]
[1728582804209,8.18,137.27,137.21,2.31017]
[1728582805409,3.6467,137.25,137.21,5.95757]
[1728582805611,8.18,137.27,137.21,5.95757]
[1728582805805,8.18,137.27,137.21,2.31017]
[1728582806008,3.6472,137.22,137.21,2.31017]
[1728582806207,3.6472,137.22,137.21,0.12502]
[1728582807507,11.827,137.23,137.21,0.12502]
[1728582808610,8.18,137.23,137.21,2.31017]
[1728582808915,8.18,137.23,137.21,5.95747]
[1728582809116,8.18,137.23,137.21,2.31017]
[1728582809511,8.18,137.23,137.21,5.95747]
[1728582809711,8.18,137.23,137.21,2.31017]
[1728582809912,8.18,137.23,137.21,5.95767]
[1728582810119,8.18,137.23,137.21,2.31017]
[1728582810712,28.02,137.22,137.16,4.157]
[1728582810913,28.02,137.22,137.16,6.34215]
[1728582811108,28.02,137.22,137.16,2.18515]
[1728582811407,31.58406483,137.22,137.16,2.18515]
[1728582811609,28.02,137.19,137.16,2.18515]
[1728582811811,8.18,137.18,137.15,0.12502]
[1728582812213,3.6487,137.17,137.15,0.12502]
[1728582812518,8.18,137.18,137.15,0.12502]
[1728582812719,3.6488,137.16,137.15,0.12502]
[1728582813114,8.18,137.18,137.15,0.12502]
[1728582813516,3.6488,137.16,137.15,0.12502]
[1728582813711,8.18,137.18,137.15,0.12502]
[1728582814019,3.6487,137.17,137.15,0.12502]
[1728582814222,8.18,137.18,137.15,0.12502]
[1728582814716,8.18,137.21,137.15,0.12502]
[1728582815123,111.65606834,137.24,137.21,3.6472]
[1728582815426,139.67606834,137.24,137.16,4.0688]
[1728582815618,111.65606834,137.24,137.16,6.25395]
[1728582815819,111.65606834,137.24,137.16,2.18515]
[1728582816013,28.02,137.17,137.11,4.0688]
[1728582816210,3.6492,137.15,137.1,3.6503]
[1728582816416,3.6492,137.15,137.09,2.31208]
[1728582816921,40.5286,137.17,137.09,2.31208]
[1728582817121,12.5086,137.17,137.09,2.31208]
[1728582817323,8.86,137.17,137.09,2.31208]
[1728582818019,8.86,137.17,137.09,30.33208]
[1728582818220,3.6485,137.18,137.09,30.33208]
[1728582818423,28.02,137.19,137.09,30.33208]
[1728582818618,3.6486,137.17,137.13,3.6494]
[1728582819113,3.6486,137.17,137.13,5.83646]
[1728582819317,3.6486,137.17,137.14,3.6493]
[1728582819518,36.88,137.2,137.13,2.18706]
[1728582819821,36.88,137.2,137.11,2.7739]
[1728582819822,28.02,137.17,137.12,2.18706]
[1728582820020,3.6498,137.13,137.11,3.58526]
[1728582820221,8.86,137.15,137.11,2.18706]
[1728582820615,3.6499,137.12,137.11,2.18706]
[1728582820824,36.88,137.15,137.09,0.12502]
[1728582821123,36.88,137.15,137.09,2.31208]
[1728582821726,3.6504,137.1,137.09,2.31208]
[1728582821926,3.6504,137.1,137.09,0.12502]
[1728582823929,8.86,137.15,137.09,0.12502]
[1728582824125,78.82,137.18,137.09,0.12502]
[1728582824326,8.86,137.17,137.09,2.31208]
[1728582824724,28.02,137.19,137.09,2.31208]
[1728582825026,1.374,137.16,137.09,2.31208]
[1728582825931,1.374,137.16,137.15,3.6491]
[1728582826132,1.374,137.16,137.09,2.31208]
[1728582826730,1.374,137.16,137.15,3.6491]
[1728582827028,1.374,137.16,137.15,2.18706]
[1728582827233,5.0228,137.16,137.14,2.18706]
[1728582827725,3.6491,137.15,137.14,2.18706]
[1728582827934,10.234,137.16,137.13,2.18706]
[1728582828132,38.254,137.16,137.09,2.31208]
[1728582828319,3.6504,137.1,137.09,2.31208]
[1728582828523,3.6504,137.1,137.09,0.12502]
[1728582829527,3.6504,137.1,137.05,2.18706]
[1728582829528,28.02,137.1,137.05,2.18706]
[1728582829730,28.02,137.07,137.03,2.31208]
[1728582829925,2.7495,137.09,137.03,0.12502]
[1728582829926,28.02,137.05,137.03,0.12502]
[1728582830234,3.652,137.04,137.03,0.12502]
[1728582832428,3.6525,137.02,137.01,2.18706]
[1728582832619,28.02,137.02,136.97,0.12502]
[1728582832829,28.02,136.98,136.97,0.12502]
[1728582833022,31.6736,136.98,136.97,0.12502]
[1728582833425,3.6536,136.98,136.97,0.12502]
[1728582833624,3.6536,136.98,136.97,2.31488]
[1728582835945,5.0446,137.0,136.97,2.31488]
[1728582836235,1.3915,137.0,136.97,2.31488]
[1728582838435,1.3915,137.0,136.97,5.96868]
[1728582839434,5.0446,137.0,136.97,2.31488]
[1728582839738,1.3915,137.0,136.97,2.31488]
[1728582839939,3.6533,136.99,136.97,2.31488]
[1728582840141,1.3915,137.0,136.97,2.31488]
[1728582840335,47.0315,137.0,136.97,2.31488]
[1728582840535,5.0448,137.0,136.97,2.31488]
[1728582840843,1.3915,137.0,136.97,2.31488]
[1728582841044,5.0447,137.0,136.97,2.31488]
[1728582841236,1.3915,137.0,136.97,2.31488]
[1728582841630,1.3083,137.01,136.97,2.31488]
[1728582841943,1.374,137.06,136.97,2.31488]
[1728582842142,3.6522,137.04,136.97,2.31488]
[1728582842341,1.3129,137.05,136.99,3.6533]
[1728582842543,1.3129,137.05,136.97,2.31488]
[1728582842749,45.64,137.03,136.97,2.31488]
[1728582843245,3.653,137.01,136.97,2.31488]
[1728582843443,45.64,137.03,136.97,2.31488]
[1728582844443,3.6536,136.98,136.97,2.31488]
[1728582844641,3.6536,136.98,136.97,0.12502]
[1728582845240,54.52,136.99,136.94,2.18986]
[1728582845443,45.64,136.96,136.93,2.18986]
[1728582845639,45.64,136.96,136.91,0.12502]
[1728582846151,3.6552,136.92,136.91,0.12502]
[1728582847240,9.06,136.95,136.91,0.12502]
[1728582847441,2.6452,136.97,136.91,0.12502]
[1728582847747,9.06,136.96,136.91,0.12502]
[1728582847948,45.64,136.93,136.91,0.12502]
[1728582848341,3.6552,136.92,136.91,0.12502]
[1728582848741,4.9739,136.92,136.91,0.12502]
[1728582849348,3.6563,136.88,136.87,0.12518]
[1728582849952,6.3357,136.88,136.87,0.12518]
[1728582850146,3.6557,136.9,136.87,0.12518]
[1728582850351,1.3187,136.92,136.87,0.12518]
[1728582850652,3.6561,136.89,136.87,2.31504]
[1728582850845,46.9587,136.92,136.87,0.12518]
[1728582851249,3.6563,136.88,136.87,0.12518]
[1728582852046,9.06,136.89,136.87,0.12518]
[1728582852549,46.9587,136.92,136.87,0.12518]
[1728582852749,9.06,136.91,136.87,0.12518]
[1728582853154,12.7155,136.91,136.87,3.78158]
[1728582853651,9.06,136.91,136.87,0.12518]
[1728582853851,9.06,136.91,136.87,2.31504]
[1728582854044,1.3187,136.92,136.87,2.31504]
[1728582854247,1.3187,136.92,136.91,3.6555]
[1728582854648,1.3187,136.92,136.87,2.31504]
[1728582854849,1.3187,136.92,136.89,3.656]
[1728582855050,1.3187,136.92,136.87,2.31504]
[1728582855350,1.3099,136.94,136.88,45.64]
[1728582855554,2.6934,136.99,136.88,45.64]
[1728582855748,3.77912,136.97,136.93,3.6548]
[1728582855955,3.77912,136.97,136.89,9.06]
[1728582856146,3.77912,136.97,136.89,11.24986]
[1728582856454,3.6542,136.96,136.89,39.32986]
[1728582856651,0.12502,136.97,136.89,39.32986]
[1728582856954,0.12502,136.97,136.91,28.08]
[1728582857152,0.12502,136.97,136.93,28.08]
[1728582857553,0.12502,136.97,136.96,3.6541]
[1728582857748,0.12502,137.03,136.96,30.26986]
[1728582857953,0.12502,137.03,137.02,3.6525]
[1728582858253,0.12502,137.03,137.02,2.18986]
[1728582858458,3.6529,137.01,136.97,3.6538]
[1728582858651,3.6529,137.01,136.97,5.84222]
[1728582859049,0.12502,137.03,136.97,2.18842]
[1728582859351,3.6525,137.02,136.97,2.18842]
[1728582859655,0.12502,137.03,136.97,2.18842]
[1728582859955,28.20502,137.03,136.97,2.18842]
[1728582860155,0.12502,137.03,136.97,2.18842]
[1728582860353,0.12502,137.03,136.99,28.08]
[1728582860750,0.12502,137.03,137.01,3.6528]
[1728582861052,0.12502,137.03,136.97,11.24842]
[1728582861249,0.12502,137.03,136.98,3.6534]
[1728582861453,0.12502,137.03,136.97,9.06]
[1728582861654,0.12502,137.03,136.97,11.24842]
[1728582862163,0.12502,137.03,136.98,28.08]
[1728582862468,0.12502,137.03,137.02,3.6525]
[1728582863257,0.12502,137.03,137.02,5.84092]
[1728582863851,0.12502,137.03,137.02,2.18842]
[1728582864556,0.12502,137.03,137.02,5.84092]
[1728582864954,0.12502,137.03,137.02,2.18842]
[1728582865959,0.12502,137.03,137.02,5.84092]
[1728582866254,0.12502,137.03,137.02,2.18842]
[1728582868460,3.77732,137.03,137.02,2.18842]
[1728582868657,0.12502,137.03,136.97,1.3281]
[1728582868856,28.20502,137.03,136.97,2.18842]
[1728582869065,28.08,137.0,136.94,1.4278]
[1728582869262,37.14,137.0,136.93,3.6547]
[1728582869562,37.14,137.0,136.93,2.18842]
[1728582870068,3.6538,136.98,136.93,2.18842]
[1728582870665,37.14,137.0,136.93,2.18842]
[1728582870963,28.08,136.98,136.9,1.3284]
[1728582871160,3.655,136.93,136.91,2.31344]
[1728582872163,28.08,136.98,136.91,2.31344]
[1728582872164,3.6548,136.94,136.91,2.31344]
[1728582872469,28.08,136.98,136.91,2.31344]
[1728582872875,28.08,136.96,136.91,2.31344]
[1728582873172,9.06,136.95,136.91,2.31344]
[1728582873477,3.6552,136.92,136.91,2.31344]
[1728582873656,3.6552,136.92,136.91,0.12502]
[1728582874572,12.7152,136.92,136.91,0.12502]
[1728582876370,3.655,136.93,136.91,0.12502]
[1728582876568,8.64,136.95,136.91,0.12502]
[1728582876875,8.64,136.97,136.92,3.655]
[1728582877169,8.64,136.97,136.91,2.31344]
[1728582877364,8.64,136.97,136.93,3.6549]
[1728582877565,8.64,136.97,136.91,2.31344]
[1728582877773,8.64,137.0,136.92,4.2201]
[1728582877970,29.3913,137.02,136.95,3.6543]
[1728582878182,8.64,137.01,136.95,5.84272]
[1728582878671,8.64,137.01,136.92,4.2201]
[1728582878869,28.08,137.0,136.92,6.40852]
[1728582879776,3.6537,136.98,136.95,3.6544]
[1728582880368,3.6537,136.98,136.94,5.84292]
[1728582880569,3.6539,136.97,136.94,5.84292]
[1728582880766,28.08,137.0,136.92,4.2201]
[1728582880969,28.08,137.0,136.92,6.40852]
[1728582881376,28.08,137.0,136.92,10.06362]
[1728582881573,28.08,137.0,136.92,6.40852]
[1728582881777,3.654,136.97,136.92,6.40852]
[1728582881970,3.654,136.97,136.93,3.6548]
[1728582882570,28.08,137.0,136.93,3.6548]
[1728582882770,28.08,137.0,136.93,2.18842]
[1728582882971,28.08,137.0,136.92,6.40852]
[1728582882972,31.72930493,137.0,136.92,6.40852]
[1728582883476,8.64,136.99,136.92,6.40852]
[1728582883673,28.08,136.98,136.92,2.18842]
[1728582883872,28.08,136.98,136.91,2.31344]
[1728582884087,3.6552,136.92,136.91,2.31344]
[1728582884476,3.6552,136.92,136.91,0.12502]
[1728582884773,36.72,136.95,136.91,0.12502]
[1728582884976,40.3745,136.95,136.91,0.12502]
[1728582885176,36.72,136.95,136.91,0.12502]
[1728582886182,3.655,136.93,136.91,0.12502]
[1728582886381,28.08,136.93,136.91,0.12502]
[1728582886685,28.08,136.93,136.87,0.12518]
[1728582886882,36.72,136.95,136.87,0.12518]
[1728582887085,3.6548,136.94,136.9,3.6556]
[1728582887285,36.72,136.95,136.87,0.12518]
[1728582887487,36.72,136.95,136.87,2.3136]
[1728582887785,28.08,136.92,136.87,0.12518]
[1728582888178,28.08,136.92,136.89,3.6559]
[1728582888385,1.47182,136.97,136.87,0.12518]
[1728582888587,8.64,136.96,136.87,0.12518]
[1728582888880,8.64,136.96,136.87,2.3136]
[1728582889278,0.12502,136.97,136.96,3.6541]
[1728582890285,0.12502,136.97,136.94,2.18842]
[1728582890482,0.12502,136.97,136.95,3.6542]
[1728582890884,0.12502,136.97,136.93,2.18842]
[1728582891485,0.12502,136.97,136.93,3.6547]
[1728582892488,0.12502,136.97,136.92,2.18842]
[1728582893792,28.08,136.96,136.87,1.50098]
[1728582893992,28.08,136.96,136.87,3.6894]
[1728582894587,3.6563,136.88,136.87,2.3136]
[1728582894788,3.6563,136.88,136.87,0.12518]
[1728582897889,3.6568,136.86,136.82,1.3744]
[1728582898091,3.6568,136.86,136.85,2.31344]
[1728582898791,3.6567,136.87,136.85,2.31344]
[1728582898987,8.22,136.88,136.85,2.31344]
[1728582899389,3.6567,136.87,136.85,2.31344]
[1728582899591,8.22,136.88,136.85,2.31344]
[1728582899896,3.6565,136.87,136.85,2.31344]
[1728582900083,8.22,136.88,136.85,2.31344]
[1728582900496,107.04,136.94,136.85,2.31344]
[1728582900688,8.22,136.94,136.85,2.31344]
[1728582900881,3.6553,136.92,136.88,3.6561]
[1728582901097,28.20502,136.97,136.85,0.12502]
[1728582901393,8.22,136.96,136.85,2.31344]
[1728582901693,28.08,136.94,136.85,2.31344]
[1728582901996,3.6558,136.9,136.85,2.31344]
[1728582902196,28.08,136.94,136.85,2.31344]
[1728582902493,3.6564,136.88,136.85,5.97044]
[1728582902701,36.3,136.92,136.85,2.31344]
[1728582902988,3.6562,136.89,136.86,3.6566]
[1728582903191,8.22,136.92,136.85,2.31344]
[1728582903400,36.3,136.92,136.85,2.31344]
[1728582903695,3.6568,136.86,136.85,0.12502]
[1728582903992,28.08,136.86,136.79,0.12502]
[1728582904294,3.6584,136.8,136.79,0.12502]
[1728582904688,28.08,136.8,136.73,0.12502]
[1728582904893,8.24,136.83,136.73,0.12502]
[1728582904894,28.08,136.78,136.73,0.12502]
[1728582905293,3.66,136.74,136.73,0.12502]
[1728582905488,36.94,136.74,136.68,0.12518]
[1728582905693,3.6609,136.71,136.68,0.12518]
[1728582905884,36.94,136.74,136.68,2.31864]
[1728582906088,36.94,136.74,136.68,0.12518]
[1728582906295,3.6611,136.71,136.68,0.12518]
[1728582906495,28.08,136.73,136.68,0.12518]
[1728582906684,45.69,136.73,136.68,0.12518]
[1728582906993,45.69,136.75,136.68,0.12518]
[1728582907182,45.69,136.78,136.68,2.31864]
[1728582907382,55.61,136.78,136.69,1.3411]
[1728582907584,55.61,136.78,136.69,2.19346]
[1728582907893,45.69,136.73,136.68,2.31864]
[1728582908090,55.61,136.73,136.68,2.31864]
[1728582908892,3.6613,136.69,136.68,2.31864]
[1728582909693,3.6613,136.69,136.68,0.12518]
[1728582909890,3.6613,136.69,136.52,45.69]
[1728582909891,3.6632,136.62,136.52,45.69]
[1728582910091,45.69,136.64,136.54,2.7459]
[1728582910400,9.92,136.65,136.6,2.19442]
[1728582910590,55.61,136.67,136.6,5.85812]
[1728582910792,9.92,136.67,136.61,2.31944]
[1728582911098,45.69,136.69,136.61,2.31944]
[1728582911490,9.92,136.71,136.61,2.31944]
[1728582911693,9.92,136.71,136.64,3.6627]
[1728582911992,3.6616,136.69,136.64,2.19442]